bitfinex/quotes_SOLUSD_20250210
["timestamp","ask_amount","ask_price","bid_price","bid_amount"]
[1739216918985,6.63555132,201.44,201.37,6.63555132]
[1739216919279,6.63555132,201.44,201.35,7.34650435]
[1739216919476,11.59985132,201.44,201.35,144.54650435]
[1739216919778,11.59985132,201.44,201.35,143.83555132]
[1739216919978,6.63555132,201.42,201.35,137.2]
[1739216920386,6.63555132,201.42,201.35,142.1663]
[1739216920775,6.63555132,201.4,201.34,0.03]
[1739216920981,6.63555132,201.36,201.34,0.03]
[1739216922372,11.60175132,201.36,201.34,0.03]
[1739216924089,6.63555132,201.36,201.34,0.03]
[1739216924289,7.56493199,201.35,201.34,0.03]
[1739216924493,13.18545132,201.36,201.34,0.03]
[1739216924494,6.63555132,201.36,201.34,0.03]
[1739216925826,0.93125493,201.35,201.34,0.03]
[1739216926010,0.93125493,201.35,201.26,1.5902]
[1739216926302,6.63555132,201.32,201.26,1.5902]
[1739216926773,6.63555132,201.32,201.26,6.5588]
[1739216927796,6.63555132,201.32,201.26,4.9686]
[1739216928372,6.6337,201.39,201.28,4.9682]
[1739216928373,6.63555132,201.34,201.28,4.9682]
[1739216928674,6.63555132,201.36,201.28,4.9682]
[1739216929600,6.63555132,201.36,201.28,142.1682]
[1739216931003,6.63555132,201.38,201.29,6.63555132]
[1739216931205,11.60125132,201.38,201.29,6.63555132]
[1739216932897,11.60125132,201.38,201.3,4.9677]
[1739216934396,0.93121418,201.37,201.29,6.63555132]
[1739216934901,6.63555132,201.38,201.29,11.60335132]
[1739216935112,12.53246176,201.38,201.31,6.63555132]
[1739216937313,11.60125132,201.38,201.31,11.60295132]
[1739216938010,11.60125132,201.38,201.31,6.63555132]
[1739216938011,4.9657,201.38,201.31,6.63555132]
[1739216939289,5.89661483,201.39,201.31,4.9973]
[1739216939490,0.063,201.38,201.33,6.63555132]
[1739216939690,0.063,201.38,201.35,6.63555132]
[1739216940219,0.063,201.38,201.37,6.63555132]
[1739216942716,0.063,201.38,201.36,6.63555132]
[1739216942904,0.063,201.38,201.33,12.92745132]
[1739216943113,0.063,201.38,201.34,6.63555132]
[1739216945005,0.063,201.38,201.34,11.60215132]
[1739216946123,0.063,201.38,201.36,6.63555132]
[1739216947315,0.063,201.38,201.34,6.63555132]
[1739216949327,0.063,201.38,201.34,11.60215132]
[1739216950929,0.063,201.38,201.34,6.63555132]
[1739216951223,0.063,201.38,201.34,11.60215132]
[1739216952718,0.063,201.38,201.33,6.2919]
[1739216953034,0.063,201.38,201.32,6.63555132]
[1739216953510,0.063,201.38,201.34,0.03]
[1739216959241,0.063,201.38,201.34,4.9967]
[1739216959450,0.063,201.38,201.34,11.63225132]
[1739216971442,0.063,201.38,201.34,0.03]
[1739216974841,5.0287,201.38,201.34,0.03]
[1739216975528,0.063,201.38,201.34,0.03]
[1739216982255,0.063,201.38,201.34,11.63215132]
[1739216984053,0.063,201.38,201.34,0.03]
[1739216987272,0.99422661,201.38,201.34,0.03]
[1739216987739,5.96012661,201.38,201.34,0.03]
[1739216988160,8.16635132,201.37,201.34,0.03]
[1739216989358,20.76715238,201.37,201.34,0.03]
[1739216990445,15.80115238,201.37,201.34,0.03]
[1739216991363,8.16635132,201.37,201.34,0.03]
[1739216992259,13.13235132,201.37,201.34,0.03]
[1739216995262,6.63555132,201.35,201.34,0.03]
[1739216996461,11.60195132,201.35,201.34,0.03]
[1739216996660,12.53334468,201.35,201.34,0.03]
[1739216996859,5.89779336,201.35,201.34,0.03]
[1739216997363,12.53334468,201.35,201.34,0.03]
[1739216998744,12.53334468,201.35,201.31,0.02482843]
[1739216998963,6.63555132,201.33,201.31,0.02482843]
[1739216999163,0.93148745,201.32,201.31,0.02482843]
[1739217000171,0.93146968,201.34,201.31,0.02482843]
[1739217001150,15.26960212,201.35,201.31,0.02482843]
[1739217001468,15.26960212,201.35,201.31,6.66037975]
[1739217002053,15.26960212,201.35,201.34,6.63555132]
[1739217002462,7.64038045,201.37,201.34,6.63555132]
[1739217003175,7.64038045,201.37,201.33,11.60225132]
[1739217004076,7.64038045,201.37,201.35,6.63555132]
[1739217004251,7.64038045,201.37,201.36,6.63555132]
[1739217004568,7.64038045,201.37,201.35,6.63555132]
[1739217004774,7.64038045,201.37,201.34,6.63555132]
[1739217004962,0.99409944,201.38,201.32,143.83555132]
[1739217005165,6.63555132,201.36,201.32,137.2]
[1739217006473,11.60175132,201.36,201.32,137.2]
[1739217006976,11.60175132,201.36,201.31,0.02482843]
[1739217007176,0.93133069,201.35,201.31,0.02482843]
[1739217007671,5.89783069,201.35,201.31,0.02482843]
[1739217007974,5.86965879,201.35,201.31,0.02482843]
[1739217009176,12.50521011,201.35,201.31,0.02482843]
[1739217009362,6.63555132,201.34,201.31,0.02482843]
[1739217009676,0.90326811,201.33,201.31,0.02482843]
[1739217010682,7.53880574,201.34,201.31,0.02482843]
[1739217011283,0.90325442,201.34,201.31,0.02482843]
[1739217011766,7.60173897,201.35,201.31,0.02482843]
[1739217011972,0.063,201.35,201.31,0.02482843]
[1739217013484,0.063,201.35,201.31,6.66037975]
[1739217013662,0.063,201.35,201.34,6.63555132]
[1739217015155,0.063,201.35,201.33,6.63555132]
[1739217016480,0.063,201.35,201.33,11.60225132]
[1739217016783,0.063,201.35,201.33,4.9667]
[1739217017593,0.063,201.35,201.34,8.22315132]
[1739217018381,0.063,201.35,201.33,11.60225132]
[1739217018782,0.063,201.35,201.31,148.82757975]
[1739217019967,0.063,201.35,201.33,6.63555132]
[1739217020988,0.063,201.35,201.33,6.63555132]
[1739217021170,0.063,201.35,201.34,4.9667]
[1739217031486,0.063,201.35,201.34,11.60225132]
[1739217034882,0.063,201.35,201.34,162.21409985]
[1739217035997,0.063,201.35,201.34,142.1667]
[1739217037300,0.063,201.35,201.34,142.1967]
[1739217038389,0.063,201.35,201.34,4.9967]
[1739217038897,0.063,201.35,201.34,11.63225132]
[1739217042518,0.063,201.35,201.34,25.78347807]
[1739217043096,0.063,201.38,201.34,39.73157807]
[1739217043293,0.063,201.38,201.37,20.04739985]
[1739217043534,7.64038045,201.47,201.37,157.98636242]
[1739217043698,7.64038045,201.47,201.43,6.63555132]
[1739217044013,7.64038045,201.47,201.44,6.63555132]
[1739217044601,7.64038045,201.47,201.45,11.59935132]
[1739217045100,7.64038045,201.47,201.45,4.9638]
[1739217045614,7.64038045,201.47,201.44,6.63555132]
[1739217045813,7.64038045,201.47,201.45,6.63555132]
[1739217046210,0.063,201.48,201.45,6.63555132]
[1739217047117,0.063,201.48,201.45,148.79945132]
[1739217048323,0.063,201.48,201.46,6.63555132]
[1739217048939,0.063,201.47,201.46,6.63555132]
[1739217049433,0.063,201.47,201.45,137.2]
[1739217050328,0.063,201.47,201.44,6.63555132]
[1739217051617,0.063,201.47,201.45,6.63555132]
[1739217055515,0.063,201.47,201.46,6.63555132]
[1739217056527,0.063,201.47,201.46,149.53767486]
[1739217056837,0.063,201.47,201.46,162.21109985]
[1739217057626,0.063,201.47,201.46,143.83555132]
[1739217058832,0.063,201.47,201.46,148.79925132]
[1739217064553,0.063,201.47,201.46,143.83555132]
[1739217065549,0.063,201.47,201.46,148.79925132]
[1739217068628,0.063,201.47,201.46,137.2]
[1739217069046,0.063,201.47,201.44,137.2]
[1739217071636,0.063,201.47,201.43,218.4]
[1739217071949,7.62925371,201.47,201.43,218.4]
[1739217072849,0.063,201.47,201.43,223.3644]
[1739217073856,0.063,201.47,201.44,6.63555132]
[1739217074368,0.063,201.47,201.43,218.4]
[1739217076451,0.063,201.47,201.43,142.1644]
[1739217077945,0.063,201.47,201.43,137.2]
[1739217078673,6.69855132,201.47,201.43,137.2]
[1739217079705,0.063,201.47,201.43,137.2]
[1739217080152,0.063,201.47,201.41,142.1649]
[1739217081572,0.063,201.47,201.42,6.63555132]
[1739217081764,0.063,201.47,201.43,4.9645]
[1739217082255,0.063,201.47,201.44,6.63555132]
[1739217082457,0.063,201.47,201.46,6.63555132]
[1739217082781,0.063,201.47,201.46,20.04739985]
[1739217083166,0.063,201.47,201.46,157.98561261]
[1739217083480,0.0001,201.47,201.46,238.44739985]
[1739217084070,0.0001,201.47,201.46,243.41109985]
[1739217084283,7.70338045,201.54,201.47,13.41184853]
[1739217084465,7.70338045,201.54,201.53,6.63555132]
[1739217084663,7.70338045,201.54,201.53,143.83555132]
[1739217085169,7.70338045,201.54,201.53,157.24739985]
[1739217085575,0.063,201.54,201.53,157.24739985]
[1739217086284,0.063,201.54,201.53,162.20939985]
[1739217087275,0.063,201.54,201.53,157.24739985]
[1739217087663,0.063,201.54,201.53,162.20939985]
[1739217088678,0.063,201.54,201.53,157.24739985]
[1739217089482,0.063,201.54,201.53,143.83555132]
[1739217089894,0.063,201.54,201.53,148.79755132]
[1739217090193,0.063,201.54,201.53,162.20939985]
[1739217093286,0.063,201.54,201.53,157.24739985]
[1739217093598,0.063,201.54,201.53,143.83555132]
[1739217093766,0.063,201.54,201.53,137.2]
[1739217096576,0.063,201.54,201.53,137.23]
[1739217097184,0.063,201.54,201.53,157.27739985]
[1739217097391,0.063,201.54,201.53,162.23939985]
[1739217100285,0.026,201.56,201.54,13.41184853]
[1739217100794,0.026,201.56,201.54,137.2]
[1739217106905,4.9873,201.56,201.53,81.23]
[1739217107081,0.026,201.56,201.53,81.23]
[1739217111498,0.026,201.56,201.53,86.192]
[1739217112601,0.026,201.56,201.53,223.392]
[1739217112801,0.026,201.56,201.53,218.43]
[1739217115784,0.026,201.56,201.53,137.23]
[1739217115983,6.63555132,201.55,201.53,137.23]
[1739217116700,11.59705132,201.55,201.53,137.23]
[1739217118003,11.59705132,201.55,201.53,0.03]
[1739217118304,0.93048292,201.54,201.53,0.03]
[1739217118507,5.89218292,201.54,201.53,0.03]
[1739217119005,4.9617,201.54,201.53,0.03]
[1739217119806,5.89219256,201.54,201.53,0.03]
[1739217122291,18.29659256,201.54,201.43,137.2]
[1739217122512,6.63555132,201.48,201.43,137.2]
[1739217123601,11.59885132,201.48,201.43,137.2]
[1739217124311,0.93071749,201.47,201.43,137.2]
[1739217124702,6.63555132,201.46,201.43,137.2]
[1739217126103,11.59885132,201.48,201.43,137.2]
[1739217126299,6.63555132,201.48,201.43,137.2]
[1739217126501,6.63555132,201.48,201.43,142.1644]
[1739217126704,6.63555132,201.48,201.43,137.2]
[1739217127111,0.9307003,201.47,201.43,137.2]
[1739217127307,6.63555132,201.44,201.41,218.4]
[1739217128217,4.9645,201.43,201.41,218.4]
[1739217128420,4.9645,201.43,201.38,137.23]
[1739217129294,6.63555132,201.44,201.38,137.23]
[1739217129699,6.63555132,201.44,201.38,142.1956]
[1739217129899,6.63555132,201.46,201.39,13.41184853]
[1739217130300,0.93082089,201.45,201.39,4.9654]
[1739217130718,0.93082089,201.45,201.38,143.86555132]
[1739217131014,0.93082089,201.45,201.38,148.83115132]
[1739217131414,6.63555132,201.44,201.38,137.23]
[1739217131621,7.56648929,201.44,201.38,137.23]
[1739217133529,11.59985132,201.44,201.38,137.23]
[1739217134324,6.63555132,201.44,201.38,137.23]
[1739217134520,6.63555132,201.44,201.38,142.1956]
[1739217135321,7.56642195,201.46,201.38,142.1956]
[1739217135522,24.9635,201.47,201.39,20.04739985]
[1739217136431,24.9635,201.47,201.4,4.9652]
[1739217137332,6.63555132,201.46,201.4,4.9652]
[1739217138430,11.59935132,201.46,201.4,4.9652]
[1739217139108,6.63555132,201.46,201.4,4.9652]
[1739217139312,4.963,201.49,201.41,20.04739985]
[1739217139531,4.963,201.49,201.41,238.44739985]
[1739217139731,4.963,201.49,201.42,4.9647]
[1739217139918,8.20455132,201.5,201.43,6.63555132]
[1739217140227,6.63555132,201.5,201.44,13.41184853]
[1739217140614,6.63555132,201.52,201.44,13.41184853]
[1739217140828,7.56609533,201.52,201.44,13.41184853]
[1739217141834,12.52849533,201.52,201.44,18.37584853]
[1739217142132,11.59795132,201.52,201.44,18.37584853]
[1739217142929,11.59795132,201.52,201.45,11.59945132]
[1739217145026,6.63555132,201.51,201.44,11.59975132]
[1739217145535,6.63555132,201.51,201.44,229.99975132]
[1739217146044,7.56611846,201.51,201.44,225.03555132]
[1739217146229,7.56611846,201.51,201.44,218.4]
[1739217146839,0.063,201.54,201.46,6.63555132]
[1739217147046,0.063,201.54,201.46,225.03555132]
[1739217147332,5.0248,201.54,201.47,13.41184853]
[1739217147640,0.063,201.54,201.47,13.41184853]
[1739217147843,0.063,201.54,201.49,13.41184853]
[1739217148225,0.063,201.54,201.51,13.41184853]
[1739217148545,0.063,201.54,201.51,150.61184853]
[1739217148846,0.063,201.54,201.52,4.9622]
[1739217149215,0.063,201.54,201.53,14.14963337]
[1739217150351,0.063,201.54,201.53,19.11163337]
[1739217151018,0.063,201.54,201.53,237.51163337]
[1739217151221,0.063,201.54,201.53,236.77384853]
[1739217151540,0.063,201.54,201.53,231.81184853]
[1739217154720,0.063,201.54,201.53,218.4]
[1739217157343,0.063,201.54,201.53,231.81184853]
[1739217157524,0.063,201.54,201.53,236.77384853]
[1739217162340,0.063,201.54,201.53,238.44739985]
[1739217162824,0.063,201.54,201.53,243.40939985]
[1739217169243,0.063,201.54,201.53,243.43939985]
[1739217169951,0.063,201.54,201.53,218.43]
[1739217175756,0.063,201.54,201.53,236.80384853]
[1739217178653,0.063,201.54,201.53,231.84184853]
[1739217179157,0.063,201.54,201.53,236.80384853]
[1739217180271,0.063,201.54,201.53,243.43939985]
[1739217181757,0.063,201.54,201.53,231.84184853]
[1739217182535,0.063,201.54,201.53,218.43]
[1739217193175,0.063,201.54,201.53,223.392]
[1739217195175,0.063,201.54,201.53,236.80384853]
[1739217196273,0.063,201.54,201.53,243.43939985]
[1739217206988,0.063,201.54,201.53,249.79019985]
[1739217208860,0.0001,201.54,201.53,250.79019985]
[1739217209274,0.0001,201.54,201.53,249.79019985]
[1739217222579,0.0001,201.54,201.53,236.80384853]
[1739217224482,0.0001,201.54,201.53,223.392]
[1739217224684,0.0001,201.54,201.53,218.43]
[1739217227801,0.0001,201.54,201.53,223.392]
[1739217228405,0.0001,201.54,201.53,236.80384853]
[1739217229596,0.0001,201.54,201.53,218.43]
[1739217230512,0.0001,201.54,201.53,223.392]
[1739217240416,0.0001,201.54,201.53,236.80384853]
[1739217253539,0.0001,201.54,201.53,223.392]
[1739217262121,0.0001,201.54,201.53,230.02755132]
[1739217263036,0.0001,201.54,201.53,243.43939985]
[1739217264706,0.0001,201.54,201.53,81.23]
[1739217266816,4.961,201.57,201.53,81.23]
[1739217267016,6.63555132,201.55,201.53,81.23]
[1739217269848,11.59705132,201.55,201.53,81.23]
[1739217270016,11.59705132,201.55,201.53,218.43]
[1739217270525,6.63555132,201.55,201.53,218.43]
[1739217272757,11.59715132,201.55,201.53,218.43]
[1739217272927,11.59715132,201.55,201.53,0.03]
[1739217273123,0.93040025,201.54,201.53,0.03]
[1739217274150,0.93047468,201.54,201.53,0.03]
[1739217277950,0.063,201.55,201.53,0.03]
[1739217279958,6.69855132,201.55,201.53,0.03]
[1739217281156,0.063,201.55,201.53,0.03]
[1739217283838,6.69855132,201.55,201.53,0.03]
[1739217284038,6.63555132,201.54,201.53,0.03]
[1739217286167,11.59725132,201.54,201.53,0.03]
[1739217288042,6.63555132,201.54,201.53,0.03]
[1739217291266,0.063,201.55,201.53,0.03]
[1739217294672,6.69855132,201.55,201.53,0.03]
[1739217295469,0.063,201.55,201.53,0.03]
[1739217298569,6.63555132,201.54,201.53,0.03]
[1739217298873,7.56600558,201.54,201.53,0.03]
[1739217299676,6.63555132,201.54,201.53,0.03]
[1739217301776,7.56600132,201.54,201.53,0.03]
[1739217302373,6.63555132,201.54,201.53,0.03]
[1739217305090,11.59725132,201.54,201.53,0.03]
[1739217307183,6.63555132,201.54,201.53,0.03]
[1739217308185,11.59725132,201.54,201.53,0.03]
[1739217310270,6.63555132,201.54,201.53,0.03]
[1739217312380,0.063,201.55,201.53,0.03]
[1739217316989,6.69855132,201.55,201.53,0.03]
[1739217317168,0.93046678,201.54,201.53,0.03]
[1739217318264,5.89216678,201.54,201.53,0.03]
[1739217323193,13.5782095,201.54,201.53,0.03]
[1739217325088,5.89216678,201.54,201.53,0.03]
[1739217327403,7.45206678,201.54,201.53,0.03]
[1739217327599,5.89216678,201.54,201.53,0.03]
[1739217330285,0.93046678,201.54,201.53,0.03]
[1739217330488,7.62898196,201.55,201.53,0.03]
[1739217330687,6.69855132,201.55,201.53,0.03]
[1739217334804,0.063,201.55,201.53,218.43]
[1739217337701,6.63555132,201.54,201.53,0.03]
[1739217337890,7.56601763,201.54,201.53,0.03]
[1739217338294,12.52771763,201.54,201.53,0.03]
[1739217338806,11.59725132,201.54,201.53,0.03]
[1739217340410,6.63555132,201.54,201.53,0.03]
[1739217340707,6.69855132,201.55,201.53,0.03]
[1739217342105,11.66015132,201.55,201.53,0.03]
[1739217344619,6.63555132,201.54,201.53,0.03]
[1739217345803,12.52767168,201.54,201.53,0.03]
[1739217346205,64.88612549,201.54,201.45,81.2]
[1739217346402,6.63555132,201.46,201.45,81.2]
[1739217348119,6.63555132,201.48,201.45,81.2]
[1739217353618,6.63555132,201.46,201.45,81.2]
[1739217354722,6.63555132,201.46,201.44,137.2]
[1739217355915,7.56636223,201.46,201.44,137.2]
[1739217357719,6.63555132,201.46,201.44,137.2]
[1739217359321,6.63555132,201.46,201.4,224.9337]
[1739217359530,6.63555132,201.44,201.4,224.9337]
[1739217360226,6.63555132,201.44,201.4,81.2]
[1739217360407,7.56646871,201.44,201.4,81.2]
[1739217360607,6.63555132,201.44,201.4,86.1651]
[1739217362508,6.63555132,201.46,201.4,86.1651]
[1739217363429,6.63555132,201.47,201.4,92.80065132]
[1739217363632,6.63555132,201.49,201.41,6.63555132]
[1739217364132,6.63555132,201.49,201.42,6.63555132]
[1739217364318,6.63555132,201.49,201.4,86.90384935]
[1739217364319,6.63555132,201.49,201.41,6.63555132]
[1739217364742,6.63555132,201.49,201.42,4.9647]
[1739217365335,6.63555132,201.49,201.42,225.0141]
[1739217365632,6.63555132,201.5,201.42,244.06145132]
[1739217366134,6.63555132,201.49,201.42,237.4259]
[1739217367329,6.63555132,201.51,201.43,20.78602264]
[1739217367629,6.63555132,201.53,201.46,6.63555132]
[1739217368023,6.63555132,201.53,201.45,6.63555132]
[1739217368332,6.63555132,201.53,201.45,20.04739985]
[1739217368710,6.63555132,201.53,201.46,4.93641737]
[1739217369330,6.69855132,201.54,201.47,14.1501337]
[1739217369535,0.063,201.54,201.48,6.63555132]
[1739217369712,0.063,201.54,201.48,225.03555132]
[1739217370129,0.063,201.54,201.49,13.41184853]
[1739217370335,0.063,201.54,201.5,6.63555132]
[1739217370525,0.063,201.54,201.51,20.04739985]
[1739217370715,0.063,201.54,201.53,13.41184853]
[1739217370919,0.063,201.54,201.53,238.44739985]
[1739217371913,0.063,201.54,201.53,236.77384853]
[1739217372444,0.063,201.54,201.53,218.4]
[1739217374641,0.063,201.54,201.53,238.44739985]
[1739217374815,0.063,201.54,201.53,243.40939985]
[1739217375742,0.063,201.54,201.53,236.77384853]
[1739217384149,0.063,201.54,201.53,223.362]
[1739217385146,0.063,201.54,201.53,236.77384853]
[1739217386641,0.0001,201.54,201.53,236.89933853]
[1739217386829,0.063,201.59,201.57,20.0]
[1739217387027,0.063,201.59,201.58,25.74516187]
[1739217388050,0.063,201.59,201.58,244.14516187]
[1739217388239,0.063,201.59,201.58,243.40819985]
[1739217390142,0.063,201.59,201.58,249.64759985]
[1739217390853,0.063,201.64,201.62,13.41184853]
[1739217391034,0.063,201.64,201.63,14.14844715]
[1739217391353,0.063,201.64,201.62,218.4]
[1739217395545,0.063,201.64,201.63,13.41184853]
[1739217395732,0.063,201.64,201.63,20.78407238]
[1739217396835,0.063,201.64,201.63,25.74357238]
[1739217397237,0.063,201.64,201.63,25.00689985]
[1739217398346,0.063,201.64,201.63,18.37134853]
[1739217399051,0.063,201.64,201.62,218.4]
[1739217399450,0.063,201.64,201.62,223.3598]
[1739217403672,0.063,201.64,201.63,13.41184853]
[1739217403847,0.063,201.64,201.63,14.14852704]
[1739217404466,0.063,201.64,201.63,19.10802704]
[1739217404651,0.063,201.64,201.63,25.74357836]
[1739217406754,0.063,201.64,201.63,244.14357836]
[1739217406957,0.063,201.64,201.63,243.40689985]
[1739217410068,0.063,201.68,201.67,13.41184853]
[1739217410245,0.063,201.68,201.67,231.81184853]
[1739217412071,0.063,201.68,201.67,236.77034853]
[1739217414587,0.063,201.68,201.67,243.40589985]
[1739217417507,0.063,201.68,201.67,236.77034853]
[1739217422961,0.063,201.68,201.67,218.4]
[1739217424083,0.063,201.68,201.67,223.3585]
[1739217424878,0.063,201.68,201.67,236.77034853]
[1739217428886,0.063,201.69,201.68,21.20234853]
[1739217428887,0.0001,201.69,201.68,21.20234853]
[1739217429087,0.0001,201.69,201.68,28.57361616]
[1739217429298,0.0001,201.69,201.68,247.47557616]
[1739217429485,0.0001,201.69,201.68,246.73985985]
[1739217430591,0.063,201.74,201.73,33.41184853]
[1739217430888,0.063,201.74,201.73,251.81184853]
[1739217431073,0.063,201.74,201.73,218.4]
[1739217431787,0.063,201.74,201.73,231.81184853]
[1739217432670,0.063,201.74,201.73,236.76894853]
[1739217433381,0.063,201.74,201.73,218.4]
[1739217435394,0.063,201.74,201.73,236.76894853]
[1739217438111,0.063,201.74,201.73,243.40449985]
[1739217439316,0.063,201.74,201.73,236.76894853]
[1739217440208,0.063,201.74,201.73,218.4]
[1739217441811,0.063,201.74,201.73,223.3571]
[1739217442012,0.063,201.74,201.73,243.40449985]
[1739217447009,0.063,201.74,201.73,236.76894853]
[1739217449510,0.063,201.74,201.73,218.4]
[1739217450096,0.063,201.74,201.73,223.3571]
[1739217453811,0.063,201.74,201.73,218.4]
[1739217454319,0.063,201.74,201.73,223.3571]
[1739217455123,0.063,201.74,201.73,236.76894853]
[1739217459504,0.063,201.74,201.73,243.40449985]
[1739217464327,0.063,201.82,201.76,20.0]
[1739217464510,0.063,201.82,201.76,40.78255572]
[1739217465829,6.63555132,201.8,201.76,20.0]
[1739217466623,6.69855132,201.82,201.76,33.41184853]
[1739217467332,6.69855132,201.82,201.76,34.14731347]
[1739217467535,6.69855132,201.82,201.76,33.41184853]
[1739217467727,6.63555132,201.8,201.73,218.4]
[1739217468130,6.63555132,201.8,201.74,13.41184853]
[1739217468730,11.59095132,201.8,201.74,13.41184853]
[1739217469116,11.59095132,201.8,201.73,218.4]
[1739217469316,6.63555132,201.78,201.73,218.4]
[1739217469935,6.63555132,201.76,201.73,218.4]
[1739217470738,11.59185132,201.76,201.73,218.4]
[1739217474947,11.59185132,201.76,201.7,4.9578]
[1739217475543,11.59185132,201.76,201.73,0.03]
[1739217476441,6.63555132,201.76,201.73,0.03]
[1739217479452,0.063,201.77,201.73,0.03]
[1739217481141,1.6207,201.79,201.73,0.03]
[1739217481347,6.63555132,201.78,201.73,0.03]
[1739217482860,6.63555132,201.76,201.73,0.03]
[1739217483432,6.63555132,201.74,201.73,0.03]
[1739217485450,11.59235132,201.74,201.73,0.03]
[1739217499439,38.1345566,201.74,201.73,0.03]
[1739217499862,39.0642288,201.74,201.73,0.03]
[1739217501656,39.0642288,201.74,201.69,0.03]
[1739217501855,6.63555132,201.7,201.69,0.03]
[1739217503340,7.56527301,201.7,201.69,0.03]
[1739217503536,11.59335132,201.7,201.69,0.03]
[1739217503856,12.52322627,201.7,201.69,0.03]
[1739217506665,13.79382701,201.7,201.69,0.03]
[1739217506875,15.04543948,201.7,201.69,0.03]
[1739217507464,16.04543948,201.7,201.68,2.87389135]
[1739217507643,20.0,201.66,201.64,0.03]
[1739217507843,7.56564489,201.65,201.64,0.03]
[1739217509955,12.52464489,201.65,201.64,0.03]
[1739217512359,14.06074489,201.65,201.64,0.03]
[1739217514055,53.00065017,201.65,201.59,0.03]
[1739217514372,6.63555132,201.6,201.59,0.03]
[1739217515665,11.59585132,201.6,201.59,0.03]
[1739217517673,12.59585132,201.6,201.59,0.03]
[1739217517974,25.92695125,201.6,201.52,1.7036]
[1739217518153,6.63555132,201.54,201.52,0.063]
[1739217519875,11.59735132,201.54,201.52,0.063]
[1739217520180,6.63555132,201.54,201.52,0.063]
[1739217526382,11.59735132,201.54,201.52,0.063]
[1739217527087,6.63555132,201.53,201.52,0.063]
[1739217529777,11.59755132,201.53,201.52,0.063]
[1739217530185,6.63555132,201.53,201.52,0.063]
[1739217530862,11.59725132,201.54,201.52,0.063]
[1739217531681,6.63555132,201.53,201.52,0.063]
[1739217535782,0.93044979,201.57,201.52,0.063]
[1739217535783,6.63555132,201.55,201.52,0.063]
[1739217535973,11.59705132,201.55,201.52,0.063]
[1739217536663,6.63555132,201.55,201.52,0.063]
[1739217540268,11.59705132,201.55,201.52,0.063]
[1739217540878,6.63555132,201.53,201.52,0.063]
[1739217541369,11.59755132,201.53,201.52,0.063]
[1739217544287,11.59755132,201.53,201.48,81.23]
[1739217545171,11.59755132,201.53,201.52,0.063]
[1739217554789,11.57083802,201.53,201.52,0.063]
[1739217561402,7.68604272,201.55,201.52,0.063]
[1739217561808,7.68604272,201.56,201.52,0.063]
[1739217563208,7.68604272,201.56,201.52,1.6726]
[1739217564605,42.13555556,201.58,201.52,1.6726]
[1739217564606,11.59635132,201.58,201.52,1.6726]
[1739217566190,6.63555132,201.57,201.52,1.6726]
[1739217567108,11.59665132,201.57,201.52,1.6726]
[1739217569214,11.62665132,201.57,201.52,1.6726]
[1739217571313,6.63555132,201.56,201.52,1.6726]
[1739217573007,6.63555132,201.56,201.52,82.8726]
[1739217574230,6.66555132,201.57,201.52,82.8726]
[1739217574421,0.03,201.57,201.52,82.8726]
[1739217575327,4.991,201.57,201.52,82.8726]
[1739217577215,6.66555132,201.57,201.52,82.8726]
[1739217578622,0.03,201.57,201.53,6.63555132]
[1739217579006,0.03,201.57,201.54,6.63555132]
[1739217579510,0.03,201.57,201.53,20.04739985]
[1739217579708,0.03,201.57,201.53,25.00919985]
[1739217580327,0.03,201.57,201.53,18.37364853]
[1739217581926,0.03,201.57,201.53,99.57364853]